Cogmind - Beta 12 @@@ ROGUE MODE // 2023.03.26 @ 13:34:47 Player: tareth Result: Destroyed by Z-Imprinter with Zionite Laser-M Performance ------------- Evolutions (1) 500 Regions Visited (5) 1000 Robots Destroyed (24) 120 Value Destroyed (767) 767 Prototype IDs (0) 0 Alien Tech Used (0) 0 Bonus (600) 600 TOTAL SCORE: 2987 Bonus ------- Met Imprinter 300 Was Imprinted 300 Cogmind --------- Core Integrity 0/400 Matter 295/300 Energy 80/160 System Corruption 3% Temperature Cool (73) Movement Core (100) Ox1 Location -7/Deep Caves Parts ------- > --- POWER (1) -------- Light Nuclear Core > --- PROPULSION (4) --- (None) > --- UTILITY (2) ------ (None) > --- WEAPON (2) ------- (None) > --- INVENTORY (5) ---- Heavy Laser Peak State ------------ > --- POWER ------------ Ion Engine > --- PROPULSION ------- Aluminum Leg Aluminum Leg Aluminum Leg Aluminum Leg > --- UTILITY ---------- Small Storage Unit Surveybot 24 Chip > --- WEAPON ----------- Minigun Minigun > --- INVENTORY -------- Light Nuclear Core Light Treads Aluminum Leg Surveybot 24 Scanner Heavy Laser Heavy Assault Rifle Minigun Mini Grenade Launcher [Rating: 22] Favorites ----------- Power Ion Engine Engine Ion Engine Propulsion Aluminum Leg Treads Light Treads Leg Aluminum Leg Utility Small Storage Unit Storage Small Storage Unit Processor Surveybot 24 Chip Weapon Minigun Ballistic Gun Minigun Launcher Mini Grenade Launcher Build | -11 -10 -9 -9 -7 -7 ------- Run | Jun Mat Mat Min Zio Dee Slots Evolved 2 | . . 2 . . . Power . | . . . . . . Propulsion 2 | . . 2 . . . Utility . | . . . . . . Weapon . | . . . . . . Parts Attached 37 | 6 7 10 4 . 10 Power 4 | 1 1 . 1 . 1 Engine 3 | 1 1 . 1 . . Core 1 | . . . . . 1 Reactor . | . . . . . . Propulsion 17 | 2 3 8 . . 4 Treads 7 | 2 3 1 . . 1 Leg 10 | . . 7 . . 3 Wheel . | . . . . . . Hover . | . . . . . . Flight . | . . . . . . Utility 7 | 1 1 . 3 . 2 Device . | . . . . . . Storage 6 | 1 1 . 3 . 1 Processor 1 | . . . . . 1 Hackware . | . . . . . . Protection . | . . . . . . Artifact . | . . . . . . Weapon 9 | 2 2 2 . . 3 Energy Gun . | . . . . . . Energy Cannon . | . . . . . . Ballistic Gun 8 | 2 2 2 . . 2 Ballistic Cannon . | . . . . . . Launcher 1 | . . . . . 1 Special Weapon . | . . . . . . Impact Weapon . | . . . . . . Slashing Weapon . | . . . . . . Piercing Weapon . | . . . . . . Special Melee Weapon . | . . . . . . Unidentified Prototypes . | . . . . . . Parts Lost 15 | . . . . . 15 Power 1 | . . . . . 1 Propulsion 7 | . . . . . 7 Utility 2 | . . . . . 2 Weapon 5 | . . . . . 5 Highest Loss Streak 14 | . . . . . 14 To Critical Strikes . | . . . . . . Average Slot Usage (%) 99 | . 98 100 100 100 98 Engine 11 | . 14 11 11 11 10 Treads 10 | . 28 24 . . . Leg 29 | . . 19 44 44 42 Storage 22 | . 26 22 22 22 21 Ballistic Gun 23 | . 28 22 22 22 21 Naked Turns . | . . . . . . Heaviest Build 19 | 11 17 19 19 19 19 Greatest Support 60 | 40 40 60 40 40 40 Greatest Overweight (x) 1 | 1 . . . . 1 Average Overweight (x) . | . . . . . . Largest Inventory Capacity 20 | 8 8 8 20 8 8 Average Capacity 8 | 7 8 8 8 8 8 Most Carried 8 | 8 8 8 8 8 8 Average Carried 7 | 5 7 7 7 7 6 Final Capacity 8 | 8 8 8 8 8 5 Final Carried 8 | 6 8 6 8 8 1 Class Distribution -------------------- 62% | Scavenger-Mutant 37% | Mutant Dominant Class ---------------- Mutant | -10/Materials Mutant | -9/Materials Scavenger-Mutant | -9/Mines Scavenger-Mutant | -7/Zion Scavenger-Mutant | -7/Deep Caves Resources | -11 -10 -9 -9 -7 -7 ----------- Run | Jun Mat Mat Min Zio Dee Matter Collected 1085 | 241 357 277 121 10 79 Remotely . | . . . . . . Salvage Created 958 | . 407 313 169 . 69 Parts 51 | . 24 17 10 . . Haulers Intercepted . | . . . . . . Recyclers Shooed . | . . . . . . Parts Field Recycled . | . . . . . . Retrieved Matter . | . . . . . . Parts Self-Destructed . | . . . . . . Prevented . | . . . . . . Kills | -11 -10 -9 -9 -7 -7 ------- Run | Jun Mat Mat Min Zio Dee Combat Hostiles Destroyed 26 | . 9 10 4 . 3 Guns 26 | . 9 10 4 . 3 Classes Destroyed 6 | . 2 2 1 . 1 Watcher 1 | . 1 . . . . Swarmer 4 | . . 4 . . . Grunt 17 | . 9 5 3 . . Brawler 1 | . . . 1 . . Sentry 1 | . . 1 . . . Assembled 3 | . . . . . 3 Best Kill Streak 5 | . 5 4 2 . 2 Combat Bots Only 5 | . 5 4 2 . 2 Max Kills in Single Turn 2 | . 1 2 1 . 1 Gunslinging 1 | . . 1 . . . Exploded . | . . . . . . Melee . | . . . . . . Uniques/NPCs Destroyed . | . . . . . . Combat | -11 -10 -9 -9 -7 -7 -------- Run | Jun Mat Mat Min Zio Dee Damage Taken 2850 | . 412 547 110 . 1781 Core 502 | . 89 66 37 . 310 Absorbed by Shields . | . . . . . . Core Remaining (%) 82 | 100 64 . . . . Volleys Fired 88 | . 33 31 7 . 17 Largest 2 | . 2 2 2 . 2 Hottest 50 | . 40 40 50 . 50 Shots Fired 173 | . 66 62 14 . 31 Gun 173 | . 66 62 14 . 31 Cannon . | . . . . . . Launcher . | . . . . . . Special . | . . . . . . Kinetic 173 | . 66 62 14 . 31 Thermal . | . . . . . . Explosive . | . . . . . . Electromagnetic . | . . . . . . Robot Hit Streak 9 | . 9 8 6 . 7 Robot Miss Streak 7 | . 3 3 2 . 7 Penetration Max . | . . . . . . Secondary Targets 4 | . 1 3 . . . Max Gunslinging Chain 1 | . 1 1 . . . Shots Hit Robots 109 | . 48 38 9 . 14 Core Hits 51 | . 21 16 6 . 8 Critical Kills . | . . . . . . Critical Parts Destroyed 1 | . 1 . . . . Critical Strikes 1 | . 1 . . . . Destroy 1 | . 1 . . . . Melee Attacks . | . . . . . . Impact . | . . . . . . Slashing . | . . . . . . Piercing . | . . . . . . Sneak Attacks . | . . . . . . Combat Hostiles . | . . . . . . Follow-up Attacks . | . . . . . . Damage Inflicted 1400 | . 513 494 149 . 244 Guns 1400 | . 513 494 149 . 244 Cannons . | . . . . . . Explosions . | . . . . . . Melee . | . . . . . . Ramming . | . . . . . . Kinetic 1400 | . 513 494 149 . 244 Thermal . | . . . . . . Explosive . | . . . . . . Electromagnetic . | . . . . . . Impact . | . . . . . . Slashing . | . . . . . . Piercing . | . . . . . . Highest Corruption 3 | . . . . . 3 Average Corruption 3 | . . . . . 3 Corruption Purged . | . . . . . . Corruption Blocked . | . . . . . . Effects 7 | . . . . . 7 Message Errors 1 | . . . . . 1 Matter Fused 1 | . . . . . 1 Heat Flow Errors 2 | . . . . . 2 Energy Discharges 2 | . . . . . 2 Data Loss (minor) 1 | . . . . . 1 Overload Shots . | . . . . . . Overflow Damage . | . . . . . . Projectiles . | . . . . . . Explosions . | . . . . . . Melee . | . . . . . . Knockbacks . | . . . . . . Impact . | . . . . . . Kinetic . | . . . . . . Secondary . | . . . . . . Self-Inflicted Damage . | . . . . . . Shots . | . . . . . . Rammed . | . . . . . . Targets Rammed . | . . . . . . Kicked . | . . . . . . Crushed . | . . . . . . Highest Temperature 224 | . 12 . 17 . 224 Average Temperature 38 | . 7 . 8 . 60 Received Heat Transfer 1029 | . 228 222 60 . 519 Siege Activations . | . . . . . . Robots Corrupted . | . . . . . . Combat Hostiles . | . . . . . . Parts Fried . | . . . . . . Impact Corruptions . | . . . . . . Robots Melted . | . . . . . . Combat Hostiles . | . . . . . . Parts Melted . | . . . . . . Heat Transferred . | . . . . . . Parts Sabotaged . | . . . . . . Parts Stolen . | . . . . . . Parts Stripped . | . . . . . . Power Chain Reactions . | . . . . . . Missiles Intercepted . | . . . . . . Alert | -11 -10 -9 -9 -7 -7 ------- Run | Jun Mat Mat Min Zio Dee Peak Influence 255 | . 150 255 199 . . Initial 99 | . . 49 99 . . Average 95 | . 70 94 166 . . Maximum Alert Level 1 | . . 1 . . . Low Security (%) 97 | 100 100 91 100 . . Level 1 2 | . . 8 . . . Level 2 . | . . . . . . Level 3 . | . . . . . . Level 4 . | . . . . . . Level 5 . | . . . . . . High Security . | . . . . . . Max Security . | . . . . . . Squads Dispatched 1 | . 1 . . . . Investigation 1 | . 1 . . . . Extermination . | . . . . . . Reinforcement . | . . . . . . Assault . | . . . . . . Garrison . | . . . . . . Intercept . | . . . . . . Searches Triggered . | . . . . . . Construction Impeded . | . . . . . . Haulers Reinforced . | . . . . . . Active Scanning Responses . | . . . . . . Cargo Convoy Interrupts . | . . . . . . Stealth | -11 -10 -9 -9 -7 -7 --------- Run | Jun Mat Mat Min Zio Dee Distress Signals 3 | . 1 2 . . . Communications Jammed . | . . . . . . Distress Signals . | . . . . . . Times Spotted 46 | . 14 18 4 . 10 Peak Tracking Total 8 | . 5 7 2 . 8 Tactical Retreats 4 | . 1 2 . . 1 Traps | -11 -10 -9 -9 -7 -7 ------- Run | Jun Mat Mat Min Zio Dee Traps Triggered 1 | . 1 . . . . Indirectly . | . . . . . . Trap Hack Attempts . | . . . . . . Triggered . | . . . . . . Disarmed . | . . . . . . Reprogrammed . | . . . . . . Reused . | . . . . . . Traps Extracted . | . . . . . . Installed . | . . . . . . Triggered . | . . . . . . Machines | -11 -10 -9 -9 -7 -7 ---------- Run | Jun Mat Mat Min Zio Dee Machines Disabled . | . . . . . . Max in Single Turn . | . . . . . . Machines Repaired . | . . . . . . Machines Sabotaged . | . . . . . . Overloaded Fab Kills . | . . . . . . Hacking | -11 -10 -9 -9 -7 -7 --------- Run | Jun Mat Mat Min Zio Dee Machines Accessed 2 | . 1 . . 1 . Terminals 1 | . 1 . . . . Fabricators . | . . . . . . Repair Stations . | . . . . . . Recycling Units . | . . . . . . Scanalyzers . | . . . . . . Garrison Access . | . . . . . . Total Hacks 2 | . 1 . . 1 . Successful 1 | . . . . 1 . Failed 1 | . 1 . . . . Catastrophic . | . . . . . . Database Lockouts . | . . . . . . Manual 10 | . . . . 10 . Terminals 1 | . 1 . . . . Fabricators . | . . . . . . Repair Stations . | . . . . . . Recycling Units . | . . . . . . Scanalyzers . | . . . . . . Garrison Access . | . . . . . . Terminal Hacks 1 | . . . . 1 . Part Schematic 1 | . . . . 1 . Fabricator Hacks . | . . . . . . Repair Station Hacks . | . . . . . . Recycling Unit Hacks . | . . . . . . Scanalyzer . | . . . . . . Garrison Access Hacks . | . . . . . . Unauthorized Hacks . | . . . . . . Terminals . | . . . . . . Fabricators . | . . . . . . Repair Stations . | . . . . . . Recycling Units . | . . . . . . Scanalyzers . | . . . . . . Garrison Access . | . . . . . . Data Cores Recovered . | . . . . . . Used . | . . . . . . Hacking Detections . | . . . . . . Full Trace Events . | . . . . . . Feedback Events . | . . . . . . Feedback Blocked . | . . . . . . Robot Schematics Acquired . | . . . . . . Robots Built . | . . . . . . Authchips . | . . . . . . Time . | . . . . . . Total Robot Build Rating . | . . . . . . Part Schematics Acquired 2 | . . . . 2 . Parts Built . | . . . . . . Authchips . | . . . . . . Time . | . . . . . . Total Part Build Rating . | . . . . . . Parts Repaired . | . . . . . . Time . | . . . . . . Parts Recycled . | . . . . . . Recycled Matter . | . . . . . . Retrieved Matter . | . . . . . . Retrieved Components . | . . . . . . Parts Scanalyzed . | . . . . . . Part Schematics Acquired . | . . . . . . Parts Damaged . | . . . . . . Bothacking | -11 -10 -9 -9 -7 -7 ------------ Run | Jun Mat Mat Min Zio Dee Used RIF Installer . | . . . . . . Robots Hacked . | . . . . . . Non-combat . | . . . . . . Combat . | . . . . . . Robot Hacks Applied . | . . . . . . Relay Couplers Released . | . . . . . . Fabnet Peak Effective % . | . . . . . . Robots Rewired . | . . . . . . Allies Hacked . | . . . . . . Hacks Repelled . | . . . . . . Allies | -11 -10 -9 -9 -7 -7 -------- Run | Jun Mat Mat Min Zio Dee Total Allies 4 | . . . . 4 . Largest Group 4 | . . . . 4 3 Highest-Rated Group 151 | . . . . 151 113 Highest-Rated Ally 40 | . . . . 40 40 Total Orders . | . . . . . . Ally Attacks . | . . . . . . Total Damage . | . . . . . . Kills . | . . . . . . Allies Corrupted . | . . . . . . Allies Melted . | . . . . . . Intel | -11 -10 -9 -9 -7 -7 ------- Run | Jun Mat Mat Min Zio Dee Robot Analysis Total . | . . . . . . Derelict Logs Recovered 2 | . . . . 2 . Drone Launches . | . . . . . . Drone Recoveries . | . . . . . . Exploration | -11 -10 -9 -9 -7 -7 ------------- Run | Jun Mat Mat Min Zio Dee Turns Passed 3155 | 95 640 597 353 1112 358 Spaces Moved 1997 | 62 295 274 255 885 226 Core 30 | 30 . . . . . Treads 530 | 32 295 203 . . . Legs 1437 | . . 71 255 885 226 Wheels . | . . . . . . Hover . | . . . . . . Flight . | . . . . . . Fastest Speed 50 | 50 160 120 120 120 120 Average Speed 130 | 122 160 149 120 120 120 Slowest Speed 190 | 160 160 160 120 120 190 Overloaded Moves . | . . . . . . Propulsion Burnouts . | . . . . . . Robots Hopped . | . . . . . . Cave-ins Triggered . | . . . . . . Exploration Rate (%) 38 | 5 45 23 48 80 30 Regions Visited 5 Branch Regions 3 Pre-discovered Areas 1 | . . . . 1 . Known Exits Taken . | . . . . . . Unknown Exits Taken 5 | 1 1 1 1 1 . Scrap Searched 2 | . . . 1 1 . Spaces Dug . | . . . . . . Terrain Destroyed . | . . . . . . Melee . | . . . . . . Projectile . | . . . . . . AOE . | . . . . . . Terrain Rammed . | . . . . . . Walls Destroyed . | . . . . . . Machines Disabled . | . . . . . . Actions | -11 -10 -9 -9 -7 -7 --------- Run | Jun Mat Mat Min Zio Dee Total 2407 | 81 409 401 293 935 288 Wait 200 | 2 44 69 10 49 26 Move 1992 | 61 294 273 254 884 226 Hop . | . . . . . . Pick Up 52 | 12 17 9 10 1 3 Fast Attach . | . . . . . . Attach 24 | 6 2 5 1 . 10 Detach 1 | . . . . . 1 Swap 13 | . 5 5 3 . . Drop 35 | . 14 9 8 1 3 Fire 88 | . 33 31 7 . 17 Melee . | . . . . . . Ram . | . . . . . . Kick . | . . . . . . Crush . | . . . . . . Escape Stasis . | . . . . . . Rewire 2 | . . . . . 2 Trap . | . . . . . . Miscellaneous . | . . . . . . Route ------- -11/Junkyard -10/Materials -9/Materials -9/Mines -7/Zion -7/Deep Caves History --------- Turn | Location | Event 32 | -11/Junkyard | Discovered new exit (range 15) 96 | -11/Junkyard | Entered Materials 308 | -10/Materials | Build established: Mutant 725 | -10/Materials | Discovered new exit (range 7) 736 | -10/Materials | Entered another Materials area 736 | -9/Materials | Evolved 2 slots: Propulsion x2 1273 | -9/Materials | Discovered new exit (range 15) 1333 | -9/Materials | Entered Mines 1476 | -9/Mines | Build established: Scavenger-Mutant 1509 | -9/Mines | Found a hidden stash of uninstalled traps 1682 | -9/Mines | A Derelict revealed a hidden shortcut to a safe place 1686 | -9/Mines | Entered Zion 1828 | -7/Zion | Acquired unknown access codes intercepted by a Zionite 2080 | -7/Zion | Learned location of Warlord (-5) 2355 | -7/Zion | Learned Factory security intel 2521 | -7/Zion | Imprinted 2523 | -7/Zion | Declared Zion's savior 2765 | -7/Zion | Opened final containment barrier to the Deep Caves 2784 | -7/Zion | Discovered new exit (range 3) 2784 | -7/Zion | Saw the warning signs outside the Deep Caves entrance 2798 | -7/Zion | Entered Deep Caves 2798 | -7/Deep Caves | Accompanied by 4 allies 3062 | -7/Deep Caves | Found Surveybot 24 Chip 3069 | -7/Deep Caves | Found Surveybot 24 Scanner 3112 | -7/Deep Caves | Attacked by Z-Imprinter 3137 | -7/Deep Caves | Z-Facility disabled 3138 | -7/Deep Caves | Core integrity fell below 50% 3154 | -7/Deep Caves | Core integrity fell below 20% 3156 | -7/Deep Caves | Destroyed by Z-Imprinter with Zionite Laser-M Last Messages --------------- 03070_ Discarded Surveybot 24 Chip. 03070_ Dropped Surveybot 24 Scanner. 03071_ Extracted 10 matter. 03072_ Acquired Lrg. Matter Pod. 03102_ NEW_ZION: Z-Facility proximity alert. Z-Imprinter: GET AWAY FROM HERE! I've worked too hard for our future just to have you ruin everything! 03124_ Minigun destroyed. 03130_ Aluminum Leg destroyed. 03133_ Minigun destroyed. 03137_ Z-Facility disabled. 03137_ Aluminum Leg destroyed. 03143_ Mni. Grenade Launcher destroyed. 03149_ Ion Engine destroyed. 03150_ Hvy. Assault Rifle destroyed. 03151_ Lgt. Treads destroyed. 03153_ Aluminum Leg destroyed. 03153_ Lrg. Matter Pod destroyed. 03155_ Minigun destroyed. 03156_ Sml. Storage Unit destroyed. Map ----- +----------------------------------------------------+ | | | | | | | | | | | | | | | | | | | | | | | | | | | ?????????????????????????????????????????????????? | | ?????????????????????????????###############?????? | | ?????????????????????#????#### ##????? | | ?????????????????????# ??## #????# | | ?????????????#####???# ?## ###### | | ????????????## ; #?# ## "# # | | ???????????? zz z ## | | ??????????? | | ??????????? | | ?????????? | | ?????????? z | | ?????????? zI""""" """" | | ?????????? @"""""""""""""" | | ?????????? """""""""""""" | | ?????????? """"""""""""" | | ??????????? """""""""" | | ??????????? """""""""??""" | | ???????????? """"???????""" | | ???????????? """??????????" | | ???????????? """??????????" | | ????????????? "???????????? | | ????????????? ????????????? | | ?????????????? ????????????????? | | ?????????????? ?????????????????? | | ???????????????? ??????????????????? | | ?????????????????? ??????????????????? | | ????????????????????? ????????????????????? | | ??????????????????????? ????????????????????? | | ????????????????????????????????????????????????? | | ?????????????????????????????????????????????????? | | ?????????????????????????????????????????????????? | | ?????????????????????????????????????????????????? | | ?????????????????????????????????????????????????? | | ?????????????????????????????????????????????????? | | ?????????????????????????????????????????????????? | | ?????????????????????????????????????????????????? | | ?????????????????????????????????????????????????? | +----------------------------------------------------+ Best States ------------- Heat Dissipation 28 Energy Generation 10 Energy Capacity 250 Matter Stores 450 Matter Capacity 450 Sight Range 16 Terrain Scan Density 2010 Evasion (%) 55 Recoil Reduction 3 Item Schematics ----------------- Mak. Laser | -7/Zion | Archive Battle Cannon | -7/Zion | Free Robot Schematics ------------------ None Fabricated ------------ Nothing Alien Tech Used ----------------- None Achievements -------------- Adventurer Robot Respite Signs Are For Wimps The One Challenges ------------ None Game ------ Seed ArcMassHammer Manual? 0 Play Time 01:00:15 Cumulative 18.7 hours Start 2023.03.26 @ 12:17:37 End 2023.03.26 @ 13:34:47 Sessions 1 Manual Loads 0 Difficulty Rogue Special Mode None Game No. 18 Rogue 18 Adventurer 0 Explorer 0 Win Type - Total 0 Types 0/0/0/0/0/0/0/0/0 Lore% 15 Gallery% 18 Achievement% 19 Wizard Run 0 Options --------- ASCII 0 Keyboard 0 Movement Numpad Keybinds 0 Fullscreen 1 Font 18/SmallcapsGlow Map View 76x50 Tactical HUD 1 Map Filters NONE Filters NONE Steam 1 RUN: fbd2e83a-df4c-4b25-a138-46bcf8eb50c8